bitfinex/quotes_ETHUSD_20251119
["timestamp","ask_amount","ask_price","bid_price","bid_amount"]
[1763524964340,0.4966,3081.2,3080.2,0.4751]
[1763524964631,0.4966,3081.2,3080.3,0.405504]
[1763524964946,0.9497,3081.2,3080.2,0.4751]
[1763524965228,0.9497,3081.2,3080.1,0.1948]
[1763524965431,0.4531,3081.1,3080.1,0.1948]
[1763524967892,0.4531,3081.1,3080.0,0.001]
[1763524968801,0.4531,3081.1,3080.1,0.1988]
[1763524970755,0.4531,3081.1,3080.1,0.6739]
[1763524971250,0.4531,3081.1,3080.1,0.1988]
[1763524971946,0.4531,3081.1,3080.2,0.4751]
[1763524974341,0.3137,3080.3,3080.0,0.001]
[1763524974648,0.4531,3081.1,3080.0,0.001]
[1763524974649,0.3137,3080.1,3080.0,0.001]
[1763524975027,0.7654,3080.1,3080.0,0.001]
[1763524977260,0.4517,3080.5,3080.0,0.001]
[1763524978260,0.3151,3080.1,3080.0,0.001]
[1763524978461,0.7655,3080.1,3080.0,0.001]
[1763524979124,0.7655,3080.1,3079.9,0.001]
[1763524979125,1.63639731,3080.1,3079.9,0.001]
[1763524979325,1.75205342,3080.0,3079.9,0.001]
[1763524979722,1.75205342,3080.0,3079.8,0.001]
[1763524979927,8.1006842,3079.9,3079.8,0.001]
[1763524980159,8.78779357,3079.9,3079.8,0.001]
[1763524980346,9.80993101,3079.9,3079.8,0.001]
[1763524980575,1.76829664,3079.8,3079.5,0.001]
[1763524980782,0.3139,3079.6,3079.5,0.001]
[1763524980980,0.61204405,3079.6,3079.5,0.001]
[1763524981174,1.07490501,3079.6,3079.5,0.001]
[1763524981375,1.37253799,3079.6,3079.5,0.001]
[1763524981575,2.27953063,3079.6,3079.5,0.001]
[1763524981892,2.46374108,3079.6,3079.5,0.001]
[1763524982100,2.46374108,3079.6,3078.0,0.1988]
[1763524982401,2.08511856,3079.5,3078.0,0.1988]
[1763524982581,0.90699264,3079.3,3077.8,0.4751]
[1763524982771,2.20422471,3079.3,3077.8,0.4751]
[1763524982965,2.65862471,3079.3,3077.8,0.4751]
[1763524983157,3.2538076,3079.3,3077.8,0.4751]
[1763524983354,2.56810851,3079.3,3077.8,0.4751]
[1763524983556,3.25170989,3079.3,3077.8,0.4751]
[1763524984369,1.66111587,3079.3,3078.2,0.4751]
[1763524984570,2.08079664,3079.3,3077.5,0.4751]
[1763524984770,2.76376687,3079.3,3078.8,0.001]
[1763524985073,2.76372345,3079.3,3078.8,0.001]
[1763524985271,2.76327379,3079.3,3078.8,0.001]
[1763524986381,0.7683,3079.3,3078.8,0.001]
[1763524986991,0.856104,3079.2,3078.8,0.001]
[1763524987198,7.84104415,3078.9,3078.8,0.001]
[1763524987581,8.29164415,3078.9,3078.8,0.001]
[1763524988171,9.26960888,3078.9,3078.8,0.001]
[1763524988401,3.99929728,3078.9,3078.8,0.001]
[1763524988995,3.31731953,3078.9,3078.8,0.001]
[1763524989197,2.91181553,3078.9,3078.8,0.001]
[1763524990201,1.55422289,3078.9,3078.8,0.001]
[1763524990506,1.0428,3078.9,3078.8,0.001]
[1763524992817,0.4796,3078.9,3078.8,0.001]
[1763524993174,0.4506,3079.6,3078.8,0.9784]
[1763524993476,0.4506,3079.5,3078.8,0.001]
[1763524993981,0.5919,3078.9,3078.8,0.001]
[1763524994500,1.042,3078.9,3078.8,0.001]
[1763524995904,0.405504,3078.8,3077.5,0.4929]
[1763524996084,0.90699264,3078.5,3077.1,0.4929]
[1763524996292,0.68444402,3078.4,3077.1,0.4929]
[1763524996490,1.13504402,3078.4,3077.1,0.4929]
[1763524996723,0.405504,3078.2,3077.1,0.4929]
[1763524996902,0.405504,3078.2,3076.6,0.09083496]
[1763524996903,0.582,3077.2,3076.6,0.09083496]
[1763524997206,7.35024015,3076.7,3076.6,0.09083496]
[1763524997412,2.14781666,3076.7,3076.6,0.09083496]
[1763524997721,1.86199264,3076.7,3076.6,0.09083496]
[1763524998025,8.20494415,3076.7,3076.6,0.09083496]
[1763524998391,8.8865593,3076.7,3076.6,0.09083496]
[1763524999004,9.28107099,3076.7,3076.6,0.09083496]
[1763524999205,0.90699264,3076.6,3075.6,0.186]
[1763524999428,0.1864,3077.2,3075.6,0.186]
[1763524999627,0.4506,3077.1,3075.7,0.4929]
[1763524999790,0.405504,3076.8,3075.6,0.186]
[1763524999990,1.31249664,3076.8,3075.6,0.6789]
[1763525000206,1.17559442,3076.7,3075.6,0.6789]
[1763525000824,0.4506,3076.6,3075.6,0.6789]
[1763525001924,0.72499442,3076.7,3075.7,0.4929]
[1763525002132,0.4506,3077.0,3075.7,0.4929]
[1763525003029,0.68116774,3077.3,3076.9,0.4607]
[1763525003237,0.68116774,3077.4,3077.2,0.4607]
[1763525003536,0.6739,3078.1,3076.4,0.4736]
[1763525003537,0.4776,3077.9,3076.4,0.4736]
[1763525003719,1.91067184,3078.0,3076.4,0.4736]
[1763525003902,0.29578169,3077.9,3076.4,0.4736]
[1763525004097,0.77338169,3077.9,3076.4,0.4736]
[1763525004341,2.31225339,3077.9,3076.4,0.4736]
[1763525004625,0.23955551,3078.0,3076.5,0.405504]
[1763525004854,0.68216421,3078.3,3077.9,0.6467]
[1763525005142,0.4776,3078.7,3078.0,0.4607]
[1763525005307,0.4776,3078.7,3077.9,0.186]
[1763525005641,0.16308298,3078.6,3077.9,0.6596]
[1763525005832,0.68256163,3079.1,3077.9,0.6596]
[1763525006028,1.33472386,3079.2,3078.0,0.4736]
[1763525006208,0.29620856,3079.1,3078.0,0.4736]
[1763525006749,0.77380856,3079.1,3078.0,0.4736]
[1763525007053,0.16309324,3079.0,3078.0,0.4736]
[1763525007354,0.22529891,3078.9,3077.9,0.186]
[1763525007503,0.4776,3078.8,3077.9,0.186]
[1763525007858,0.04060155,3078.7,3077.9,0.186]
[1763525008046,0.1671534,3078.6,3077.9,0.6596]
[1763525008354,0.04060419,3078.5,3077.1,0.405504]
[1763525008533,2.74342344,3078.7,3077.6,0.186]
[1763525008707,0.29674531,3078.6,3077.6,0.186]
[1763525008913,1.58028968,3078.5,3077.6,0.186]
[1763525009109,0.29674531,3078.4,3077.6,0.186]
[1763525009307,0.04060682,3078.3,3077.6,0.186]
[1763525009535,1.16016163,3078.4,3077.6,0.186]
[1763525009850,0.23140308,3078.3,3077.6,0.6596]
[1763525010044,0.91396471,3078.3,3077.6,0.6596]
[1763525010246,0.23140308,3078.3,3077.6,0.6596]
[1763525010452,0.52869413,3078.3,3077.6,0.186]
[1763525010665,0.52869413,3078.3,3077.1,0.4736]
[1763525010666,1.41475959,3078.2,3077.1,0.4736]
[1763525010835,1.20426739,3078.1,3077.1,0.4736]
[1763525011034,0.68256163,3078.1,3077.1,0.4736]
[1763525011551,2.35522932,3078.0,3076.6,0.4736]
[1763525011729,3.40631118,3077.9,3076.6,0.4736]
[1763525011926,1.32458688,3077.8,3076.6,0.4736]
[1763525012149,1.02725383,3077.8,3076.6,0.4736]
[1763525012552,0.81555064,3077.7,3076.6,0.4736]
[1763525012760,0.68256163,3077.6,3076.6,0.4736]
[1763525012923,0.04061738,3077.5,3076.6,0.4736]
[1763525013361,0.21077717,3077.4,3076.6,0.4736]
[1763525014634,0.04062002,3077.3,3076.6,0.4736]
[1763525014833,0.21077717,3077.4,3076.6,0.4736]
[1763525015174,0.29732085,3077.5,3076.6,0.4736]
[1763525015540,0.0406187,3077.4,3076.6,0.4736]
[1763525016544,0.29732085,3077.5,3076.6,0.4736]
[1763525016958,0.0406187,3077.4,3076.6,0.4736]
[1763525017138,0.0406187,3077.4,3076.2,0.4937]
[1763525017341,0.5235187,3077.4,3076.2,0.4937]
[1763525017559,1.20608033,3077.4,3076.2,0.4937]
[1763525017869,2.07305884,3077.3,3076.0,0.186]
[1763525018071,0.29732085,3077.2,3076.0,0.186]
[1763525018306,0.78022085,3077.2,3076.0,0.186]
[1763525018680,0.78022085,3077.2,3075.8,0.4937]
[1763525018681,0.7802588,3077.1,3075.8,0.4937]
[1763525019005,0.4829,3077.1,3075.8,0.4937]
[1763525019308,0.4829,3077.0,3076.0,0.001]
[1763525019810,0.1828,3076.9,3076.0,0.001]
[1763525020218,0.4829,3076.8,3076.0,0.001]
[1763525020373,0.78025184,3076.8,3076.0,0.001]
[1763525020578,0.18700445,3076.7,3076.0,0.001]
[1763525020801,0.66990445,3076.7,3076.0,0.001]
[1763525021281,0.4829,3076.7,3076.0,0.001]
[1763525021599,0.29739388,3076.7,3076.0,0.001]
[1763525021789,0.4829,3076.6,3076.0,0.001]
[1763525022211,0.3041,3076.1,3076.0,0.001]
[1763525022717,0.29736698,3076.5,3076.0,0.001]
[1763525023083,0.4829,3076.5,3076.0,0.001]
[1763525023280,0.29736698,3076.6,3076.0,0.001]
[1763525023596,0.22425565,3076.5,3076.0,0.001]
[1763525023996,0.4829,3076.4,3076.0,0.001]
[1763525024417,0.22425565,3076.5,3076.0,0.001]
[1763525024418,1.2043465,3076.5,3076.0,0.001]
[1763525024595,0.29752922,3076.4,3076.0,0.001]
[1763525024799,0.22425565,3076.5,3076.0,0.001]
[1763525025123,0.22425565,3076.5,3076.1,0.191]
[1763525025317,0.68256163,3076.7,3076.4,0.451]
[1763525025518,0.29764665,3076.6,3076.2,0.4937]
[1763525025696,0.29764665,3076.7,3076.1,0.191]
[1763525026393,0.68256163,3076.8,3076.2,0.4937]
[1763525026595,0.04062794,3076.7,3076.0,0.001]
[1763525026785,0.405504,3076.8,3076.0,0.001]
[1763525026982,0.9802516,3076.8,3076.1,0.191]
[1763525027218,0.29768997,3076.7,3076.1,0.191]
[1763525027423,0.78058997,3076.8,3076.1,0.191]
[1763525027588,0.16878533,3076.7,3076.0,0.001]
[1763525027784,0.04062926,3076.6,3076.0,0.001]
[1763525028009,0.33831923,3076.6,3076.0,0.001]
[1763525028326,0.3041,3076.1,3076.0,0.001]
[1763525028717,0.7852,3076.1,3076.0,0.001]
[1763525029938,0.82583587,3076.1,3076.0,0.001]
[1763525030154,1.23133987,3076.1,3076.0,0.001]
[1763525030334,1.23133987,3076.1,3075.6,0.001]
[1763525030335,0.405504,3076.0,3075.6,0.001]
[1763525030660,2.94748608,3075.7,3075.6,0.001]
[1763525030830,1.87811814,3075.7,3075.6,0.001]
[1763525031031,3.26598059,3075.7,3075.6,0.001]
[1763525031230,1.28958395,3075.7,3075.6,0.001]
[1763525031541,0.99216163,3075.7,3075.6,0.001]
[1763525031842,0.1828,3075.9,3075.6,0.001]
[1763525031843,0.68256163,3075.9,3075.6,0.001]
[1763525032037,0.29716911,3075.8,3075.6,0.001]
[1763525032354,0.3096,3075.7,3075.6,0.001]
[1763525032520,0.4811,3076.0,3075.6,0.001]
[1763525032703,0.77817365,3076.0,3075.6,0.001]
[1763525032908,0.4811,3076.0,3075.6,0.001]
[1763525033105,0.29707325,3076.1,3075.6,0.001]
[1763525033422,0.20199147,3076.0,3075.6,0.001]
[1763525033620,0.68256163,3076.3,3076.1,0.642]
[1763525033817,1.20783839,3076.7,3076.1,0.642]
[1763525033818,0.16878533,3076.7,3076.2,0.451]
[1763525034033,0.46586489,3076.7,3076.2,0.9447]
[1763525034234,0.16878533,3076.7,3076.2,0.9447]
[1763525034641,0.1828,3076.9,3076.2,0.451]
[1763525034840,0.47988239,3076.9,3076.2,0.451]
[1763525035044,0.04062662,3076.8,3076.2,0.451]
[1763525035242,0.2971372,3076.8,3076.2,0.451]
[1763525035430,0.46167708,3076.8,3076.2,0.451]
[1763525035832,0.6657,3076.9,3076.2,0.451]
[1763525036058,1.34826163,3076.9,3076.2,0.451]
[1763525036340,0.1828,3076.9,3076.2,0.9447]
[1763525036745,0.1828,3076.9,3076.2,0.451]
[1763525036952,0.1828,3076.9,3076.1,0.6847]
[1763525037361,0.04062662,3076.8,3076.1,0.6847]
[1763525037538,0.002,3076.5,3076.1,0.6847]
[1763525038160,0.002,3076.5,3075.6,0.001]
[1763525038461,0.4849,3076.5,3075.6,0.4947]
[1763525038628,0.0406319,3076.4,3075.6,0.4947]
[1763525039035,0.0406319,3076.4,3076.3,0.642]
[1763525039642,0.002,3076.5,3076.3,0.642]
[1763525039843,0.3096,3076.4,3075.6,0.4947]
[1763525040044,0.04063322,3076.3,3075.6,0.4947]
[1763525040254,0.002,3076.5,3075.6,0.4947]
[1763525040456,0.002,3076.5,3076.4,0.642]
[1763525040964,0.002,3076.5,3076.4,1.1357]
[1763525041463,0.002,3076.8,3076.4,1.1357]
[1763525041652,0.002,3076.8,3076.7,0.451]
[1763525041969,0.002,3077.4,3076.8,0.405504]
[1763525042166,0.002,3077.4,3076.7,0.451]
[1763525042167,0.002,3077.4,3077.3,0.642]
[1763525042464,0.002,3077.4,3077.3,1.047504]
[1763525042670,0.002,3077.8,3077.4,0.405504]
[1763525042853,0.85625306,3079.6,3078.0,0.451]
[1763525043034,0.040591,3079.5,3078.0,0.405504]
[1763525043233,0.002,3079.7,3078.1,0.4937]
[1763525043668,0.002,3079.7,3077.9,0.024904]
[1763525045353,0.002,3079.7,3079.2,0.4209]
[1763525045749,0.002,3079.7,3079.2,0.8418]
[1763525047253,0.002,3079.7,3078.6,0.4209]
[1763525048389,0.002,3079.7,3079.2,0.4209]
[1763525048790,0.1828,3082.0,3079.9,0.4169]
[1763525048985,0.6804,3082.0,3080.0,0.405504]
[1763525049292,0.6804,3082.0,3080.1,0.5174]
[1763525049293,0.53815939,3081.9,3080.1,0.5174]
[1763525049914,0.4976,3081.9,3080.1,0.5174]
[1763525050115,0.04056071,3081.8,3080.1,0.5174]
[1763525050317,0.4976,3081.9,3080.2,0.405504]
[1763525050516,0.53816071,3081.8,3080.3,0.4169]
[1763525050689,0.4976,3081.8,3080.3,0.4169]
[1763525051102,0.44606602,3081.7,3080.3,0.4169]
[1763525051302,0.44606602,3081.7,3080.1,0.1005]
[1763525051506,0.405504,3081.5,3080.1,0.1005]
[1763525051829,0.04056597,3081.4,3080.1,0.1005]
[1763525052055,0.04056597,3081.4,3079.5,0.4169]
[1763525052056,0.405504,3081.3,3079.5,0.4169]
[1763525052234,0.0405686,3081.2,3079.8,0.1005]
[1763525052403,0.4976,3081.2,3079.8,0.1005]
[1763525052603,0.04056992,3081.1,3079.8,0.1005]
[1763525052804,0.405504,3081.0,3079.4,0.4169]
[1763525053017,0.903104,3081.0,3079.6,0.1005]
[1763525053222,0.1837,3080.9,3079.6,0.1005]
[1763525053407,0.44607787,3080.8,3079.6,0.1005]
[1763525053738,0.405504,3080.8,3079.6,0.1005]
[1763525053893,0.4976,3080.7,3079.6,0.1005]
[1763525055524,0.44608051,3080.6,3079.6,0.1005]
[1763525055726,0.405504,3080.6,3079.6,0.1005]
[1763525055967,0.4976,3080.5,3079.6,0.1005]
[1763525056550,0.1837,3080.9,3079.6,0.5174]
[1763525056767,0.6813,3080.9,3079.6,0.5174]
[1763525057275,0.4976,3080.8,3079.6,0.5174]
[1763525059826,0.405504,3080.7,3079.6,0.1005]
[1763525060027,0.405504,3080.7,3079.1,0.4169]
[1763525060233,0.53817651,3080.6,3079.1,0.4169]
[1763525060432,0.53817651,3080.6,3078.6,0.4169]
[1763525060433,0.405504,3080.5,3078.6,0.4169]
[1763525060736,0.405504,3080.5,3077.9,0.025904]
[1763525060737,0.405504,3080.3,3077.9,0.025904]
[1763525061040,0.405504,3080.3,3078.9,0.5174]
[1763525061273,0.4976,3080.3,3078.9,0.5174]
[1763525062454,0.04047339,3080.2,3078.9,0.5174]
[1763525062765,0.4976,3080.3,3078.9,0.5174]
[1763525063558,0.4976,3080.3,3077.9,0.93289664]
[1763525063559,0.5174,3078.4,3077.9,0.001]
[1763525063902,0.5174,3078.4,3077.2,0.001]
[1763525063903,0.405504,3077.5,3077.2,0.001]
[1763525064068,0.453,3077.3,3077.2,0.001]
[1763525064277,5.22332686,3077.3,3077.2,0.001]
[1763525064808,14.54459677,3077.2,3074.7,0.4179]
[1763525065109,0.4351,3076.0,3075.1,0.1015]
[1763525065482,0.1509,3075.9,3075.1,0.1015]
[1763525065869,0.1509,3076.1,3075.1,0.1015]
[1763525066068,0.1899,3076.3,3075.1,0.1015]
[1763525066764,1.7943515,3076.2,3075.1,0.1015]
[1763525066991,0.1899,3076.6,3075.3,0.4189]
[1763525067163,1.04232537,3076.6,3075.3,0.4189]
[1763525067382,0.1899,3076.6,3075.7,0.4179]
[1763525067581,0.4909,3076.9,3075.7,0.4179]
[1763525067897,0.85242537,3076.8,3075.7,0.4179]
[1763525068258,0.90386268,3077.3,3075.7,0.4179]
[1763525068481,0.4909,3077.7,3075.7,0.4179]
[1763525068681,0.4909,3077.7,3075.8,0.405504]
[1763525068860,1.34332537,3077.7,3075.8,0.405504]
[1763525069163,0.85242537,3077.7,3076.0,0.405504]
[1763525069368,0.1853,3078.0,3076.0,0.405504]
[1763525069569,0.4909,3077.8,3076.1,0.5184]
[1763525070919,0.1853,3078.0,3076.2,0.405504]
[1763525071100,0.4909,3078.2,3076.2,0.405504]
[1763525071396,0.4909,3078.2,3076.4,0.405504]
[1763525071770,0.4909,3078.2,3076.6,0.405504]
[1763525071966,0.4909,3078.6,3076.5,0.4179]
[1763525072492,0.85242537,3078.5,3076.5,0.4179]
[1763525072886,0.85242537,3078.5,3076.6,0.405504]
[1763525073260,0.85242537,3078.5,3076.7,0.4179]
[1763525073690,1.34332537,3078.5,3076.7,0.4179]
[1763525073965,0.0406055,3078.4,3076.7,0.4179]
[1763525074166,1.34332537,3078.5,3076.7,0.4179]
[1763525074712,0.405504,3078.8,3076.7,0.4179]
[1763525074922,0.405504,3078.6,3076.7,0.4179]
[1763525075118,0.89302956,3078.5,3076.7,0.4179]
[1763525075307,1.38392956,3078.5,3076.7,0.4179]
[1763525075509,0.66984336,3078.4,3076.7,0.4179]
[1763525075708,1.42817623,3078.3,3076.7,0.4179]
[1763525075910,1.91907623,3078.3,3076.7,0.4179]
[1763525076096,0.4909,3078.2,3076.7,0.4179]
[1763525076423,0.89303483,3078.1,3076.7,0.4179]
[1763525077405,0.4698,3078.0,3076.7,0.4179]
[1763525077601,1.08283536,3077.9,3076.7,0.4179]
[1763525077921,1.22792326,3077.9,3076.7,0.4179]
[1763525078085,1.69772326,3077.9,3076.7,0.4179]
[1763525080724,1.73833536,3077.9,3076.7,0.4179]
[1763525081225,1.69772326,3077.9,3076.7,0.4179]
[1763525081730,0.63957233,3077.8,3076.7,0.4179]
[1763525081893,0.85242537,3077.7,3076.7,0.4179]
[1763525082524,0.1857,3077.9,3076.7,0.4179]
[1763525083228,1.03812537,3077.9,3076.7,0.4179]
[1763525084430,0.4698,3078.2,3076.7,0.4179]
[1763525084790,0.89303483,3078.1,3076.8,0.4179]
[1763525085642,0.4698,3078.5,3076.8,0.4179]
[1763525085960,0.4698,3078.9,3076.9,0.405504]
[1763525086233,0.04060023,3078.8,3077.1,0.405504]
[1763525086395,0.8930256,3078.8,3077.1,0.405504]
[1763525086730,0.4698,3078.7,3077.2,0.5258]
[1763525087039,0.89302824,3078.6,3077.2,0.5258]
[1763525087245,0.89302824,3078.6,3077.2,0.1079]
[1763525087418,0.4698,3078.5,3077.3,0.4179]
[1763525087730,0.85242537,3078.4,3077.3,0.4179]
[1763525087934,0.89303087,3078.4,3077.3,0.4179]
[1763525088131,1.36283087,3078.4,3077.3,0.4179]
[1763525088302,1.32222537,3078.4,3077.3,0.4179]
[1763525089205,0.85242537,3078.4,3077.3,0.4179]
[1763525089426,1.15558457,3078.8,3077.3,0.4179]
[1763525089628,1.32222537,3078.8,3077.3,0.4179]
[1763525089844,0.67060099,3078.7,3077.3,0.4179]
[1763525090144,0.85242537,3078.6,3077.3,0.4179]
[1763525090344,1.32222537,3078.6,3077.3,0.4179]
[1763525091151,1.32222537,3078.6,3076.6,0.001]
[1763525091152,0.91590819,3078.5,3076.6,0.001]
[1763525091353,0.405504,3078.3,3076.6,0.4189]
[1763525091650,1.32222537,3078.2,3076.6,0.4189]
[1763525092017,0.4698,3078.1,3076.6,0.4189]
[1763525092222,0.85242537,3078.0,3076.6,0.4189]
[1763525092727,0.6555,3077.9,3076.6,0.4189]
[1763525093052,1.50792537,3077.9,3076.6,0.4189]
[1763525093228,0.85242537,3077.9,3076.6,0.4189]
[1763525093553,0.1857,3077.9,3076.6,0.4189]
[1763525093854,0.6555,3077.9,3076.6,0.4189]
[1763525095654,0.1857,3077.9,3076.6,0.001]
[1763525095856,0.4698,3077.8,3076.6,0.001]
[1763525096023,0.4698,3077.8,3076.6,0.4189]
[1763525096727,0.76904947,3077.8,3076.6,0.4189]
[1763525097245,1.45720695,3077.8,3076.6,0.4189]
[1763525097561,0.63409069,3077.7,3076.6,0.4189]
[1763525098233,1.32224817,3077.7,3076.6,0.4189]
[1763525098567,0.1857,3077.9,3076.6,0.4189]
[1763525098757,0.69076494,3077.8,3076.6,0.4189]
[1763525098923,0.69076494,3077.7,3076.6,0.4189]
[1763525100429,0.69076494,3077.7,3077.6,0.5258]
[1763525100737,0.4698,3077.6,3076.6,0.001]
[1763525101463,0.69113807,3077.6,3076.6,0.4189]
[1763525101674,0.69113807,3077.8,3076.6,0.4189]
[1763525101966,0.69113807,3077.7,3076.6,0.4189]
[1763525102354,0.69113807,3077.7,3076.7,0.405504]
[1763525102742,0.69113807,3077.7,3076.8,0.4179]
[1763525102945,0.69113807,3077.8,3076.8,0.4179]
[1763525103162,0.69113807,3077.7,3076.8,0.4179]
[1763525103365,0.1857,3077.9,3076.8,0.4179]
[1763525103366,0.69113807,3077.8,3076.8,0.4179]
[1763525103848,0.69113807,3078.1,3076.8,0.4179]
[1763525104045,0.69113807,3078.0,3076.8,0.4179]
[1763525104389,0.69113807,3077.9,3076.8,0.4179]
[1763525104533,0.69113807,3078.1,3076.8,0.4179]
[1763525104739,0.69113807,3078.0,3076.8,0.4179]
[1763525104940,0.69113807,3077.9,3076.8,0.4179]
[1763525105145,0.1857,3077.9,3076.8,0.4179]
[1763525105355,0.87683807,3077.9,3076.8,0.4179]
[1763525105581,0.1857,3077.9,3076.8,0.4179]
[1763525105871,1.20155149,3077.8,3076.8,0.4179]
[1763525106075,0.69113807,3077.7,3076.8,0.4179]
[1763525106683,0.69113807,3077.8,3076.8,0.4179]
[1763525106844,0.1857,3077.9,3076.8,0.4179]
[1763525107176,0.69113807,3078.2,3077.8,0.4179]
[1763525107343,0.69113807,3078.3,3077.9,0.4179]
[1763525107540,0.04060814,3078.2,3077.5,0.1079]
[1763525107846,1.03191802,3078.4,3077.5,0.1079]
[1763525108041,0.69113807,3078.3,3077.5,0.1079]
[1763525108271,0.04060814,3078.2,3077.5,0.1079]
[1763525109053,0.49520814,3078.2,3077.5,0.1079]
[1763525109576,0.04060814,3078.2,3077.5,0.1079]
[1763525110076,0.73174357,3078.4,3077.5,0.1079]
[1763525110379,0.69113807,3078.4,3077.6,0.4179]
[1763525110544,0.002,3078.7,3078.3,0.4179]
[1763525110741,0.69366039,3078.7,3078.3,0.4179]
[1763525110945,0.4566,3078.7,3078.1,0.1079]
[1763525111360,0.002,3078.7,3078.1,0.1079]
[1763525111989,0.4546,3078.6,3077.5,0.5258]
[1763525112384,0.4546,3078.6,3077.5,0.1079]
[1763525112682,0.4546,3078.6,3077.6,0.4179]
[1763525112993,0.002,3078.7,3077.6,0.4179]
[1763525113380,0.4566,3078.7,3077.6,0.4179]
[1763525114386,0.4566,3078.7,3077.7,0.405504]
[1763525114387,0.002,3078.7,3077.7,0.405504]
[1763525114772,0.4566,3078.7,3077.6,0.405504]
[1763525114967,0.4566,3078.7,3077.7,0.4179]
[1763525117293,0.4566,3078.7,3077.6,0.405504]
[1763525117610,0.04060287,3078.6,3077.5,0.1079]
[1763525117774,0.04060287,3078.6,3077.5,0.5258]
[1763525117969,0.49520287,3078.6,3077.5,0.5258]
[1763525118274,0.49520287,3078.6,3077.6,0.4179]
[1763525118594,0.49520287,3078.6,3077.5,0.1079]
[1763525120108,0.4546,3078.6,3077.5,0.1079]
[1763525121009,0.4546,3078.6,3077.5,0.5258]
[1763525124026,0.002,3078.7,3077.6,0.4179]
[1763525124178,0.4703,3078.7,3077.6,0.4179]
[1763525125200,0.4703,3078.7,3077.7,0.405504]
[1763525125404,0.002,3078.7,3077.8,0.4179]
[1763525127315,0.002,3078.7,3077.9,0.405504]
[1763525127524,0.002,3078.7,3078.0,0.4179]
[1763525128020,0.002,3078.6,3078.0,0.4179]
[1763525128524,0.4703,3078.6,3077.6,0.823404]
[1763525129817,0.4703,3078.6,3077.5,0.1079]
[1763525130019,0.53514404,3078.5,3077.1,0.001]
[1763525130201,0.53514404,3078.5,3077.1,0.4189]
[1763525130397,0.4683,3078.4,3077.1,0.4189]
[1763525130707,0.57575086,3078.3,3077.1,0.001]
[1763525130908,1.05166933,3078.3,3077.1,0.001]
[1763525131230,0.4683,3078.2,3077.1,0.001]
[1763525131521,0.53514404,3078.1,3077.1,0.001]
[1763525131911,0.4683,3078.0,3077.1,0.001]
[1763525132111,1.00344404,3078.0,3077.1,0.001]
[1763525132314,0.1874,3077.9,3077.1,0.001]
[1763525132512,0.6557,3077.9,3077.1,0.001]
[1763525133012,0.4683,3077.8,3077.1,0.001]
[1763525133409,0.1874,3077.9,3077.1,0.001]
[1763525133724,0.1874,3077.9,3077.1,0.4189]
[1763525134111,0.4683,3078.1,3077.1,0.4189]
[1763525134314,0.4683,3078.4,3077.1,0.4189]
[1763525135921,1.00344404,3078.4,3077.1,0.4189]
[1763525136232,0.04060682,3078.3,3077.1,0.4189]
[1763525136403,0.53430682,3078.3,3077.1,0.4189]
[1763525136921,0.4937,3078.3,3077.1,0.4189]
[1763525137123,0.53514404,3078.4,3077.1,0.4189]
[1763525137329,0.7951842,3078.6,3077.1,0.4189]
[1763525137536,0.4957,3078.6,3077.1,0.4189]
[1763525143726,0.002,3078.6,3078.5,0.4179]
[1763525144246,0.48,3078.6,3077.2,0.4189]
[1763525144410,0.002,3078.6,3077.3,0.823404]
[1763525144753,0.002,3078.6,3078.5,0.4179]
[1763525145234,0.002,3078.6,3078.0,0.4179]
[1763525145436,0.002,3078.6,3078.5,0.4179]
[1763525146043,0.002,3078.6,3078.1,0.405504]
[1763525146222,0.4957,3078.6,3077.3,0.405504]
[1763525146424,0.4957,3078.6,3077.6,0.405504]
[1763525146944,0.4957,3078.6,3077.7,0.4179]
[1763525147452,0.002,3078.6,3077.8,0.405504]
[1763525147849,0.002,3078.6,3077.1,0.406504]
[1763525148028,0.002,3078.6,3077.8,0.4179]
[1763525148231,0.002,3078.6,3078.5,0.4179]
[1763525148621,0.002,3078.6,3078.1,0.4179]
[1763525149134,0.002,3078.6,3078.5,0.4179]
[1763525149902,0.002,3078.6,3078.5,0.8358]
[1763525150455,0.002,3078.6,3078.5,0.4179]
[1763525150651,0.002,3078.6,3078.5,0.8358]
[1763525153624,0.002,3078.6,3078.5,0.4179]
[1763525153891,0.002,3078.6,3078.5,0.8358]
[1763525154052,0.002,3078.6,3078.5,1.241304]
[1763525155570,0.4937,3079.8,3078.6,0.405504]
[1763525155761,0.4937,3079.8,3078.8,0.4179]
[1763525155966,0.4937,3079.8,3078.9,0.29625514]
[1763525156287,0.4937,3079.8,3079.0,0.29625514]
[1763525156465,0.4937,3079.8,3079.1,0.29625514]
[1763525156668,0.4937,3079.6,3079.2,0.29625514]
[1763525157578,0.48,3079.3,3079.2,0.29625514]
[1763525157870,0.9737,3079.3,3079.2,0.29625514]
[1763525158303,0.48,3079.3,3079.2,0.29625514]
[1763525158667,0.9737,3079.3,3079.2,0.29625514]
[1763525158998,0.002,3079.3,3079.2,0.71415514]
[1763525159307,0.9737,3079.3,3079.2,0.29625514]
[1763525160806,0.48,3079.3,3078.6,0.29625514]
[1763525161009,0.48,3079.3,3078.7,0.29625514]
[1763525161304,0.48,3079.3,3078.8,0.29625514]
[1763525161479,0.4937,3079.2,3078.9,0.29625514]
[1763525161681,0.4937,3079.2,3079.0,0.29625514]
[1763525161997,0.48,3079.3,3079.1,0.29625514]
[1763525161998,0.002,3079.3,3079.1,0.29625514]
[1763525162310,0.4957,3079.3,3078.5,0.405504]